Workbook

Sheet Sheet1
A1: 2025年生产部3月接收处置记录统计表 | R1: 自产废物
A2: 废物名称 | B2: 危废代码 | C2: 形态 | D2: 上月结存 | E2: 本月接收量 | F2: 处置量及工艺 | J2: 库存量 | K2: 1#库 | L2: 2#库 | M2: 干化 | N2: 罐区 | O2: 料坑 | R2: 废物名称 | S2: 上月结存 | T2: 本月产生量 | U2: 包数 | V2: 本月处理 | Y2: 库存 | Z2: 备注 | AA2: 存储位置
F3: 固废焚烧 | G3: 废液焚烧 | H3: 清洗大桶 | I3: 污泥干化 | K3: 1#库 | L3: 2#库 | M3: 干化 | N3: 罐区 | O3: 料坑 | V3: 焚烧处置 | W3: 液体炉 | X3: 拉运
A4: 含乙二醇废液 | B4: 271-001-02 | C4: 液态 | D4: 1.206 | F4: =1.206 -> 1.206 | J4: =D4+E4-F4-G4-H4-I4 -> 0 | P4: =K4+L4+M4+N4+O4 -> 0 | R4: 炉渣（回转窑） | S4: 157.475 | T4: =131.09-23.76 -> 107.33 | U4: =106-20 -> 86 | Y4: =S4+T4-V4-X4-W4 -> 264.805
A5: 反应残渣2 | B5: 271-001-02 | C5: 固态 | D5: 0 | J5: 0 | P5: 0 | R5: 飞灰（回转窑） | S5: 29.8 | T5: =19.565+0.865 -> 20.43 | U5: 47 | X5: 24.775 | Y5: 25.455
A6: 反应残渣3 | B6: 271-001-02 | C6: 半固态 | D6: 3.692 | F6: =3.692 -> 3.692 | J6: 0 | P6: 0 | R6: 飞灰（废液炉） | S6: 1.205 | T6: =5.185-0.865 -> 4.32 | U6: 14 | X6: 0.33 | Y6: 5.195
A7: 废有机溶剂 | B7: 271-002-02 | C7: 液态 | D7: 0 | J7: 0 | P7: 0 | R7: 废油渣/泥 | S7: 0 | Y7: 0 | Z7: 精馏切水后剩下的罐底泥
A8: 过滤介质 | B8: 271-003-02 | C8: 固态 | D8: 0 | J8: 0 | P8: 0 | R8: 含油污水 | S8: 0 | Y8: 0 | Z8: 蒸汽清洗过程 | AA8: 2#库
A9: 废盐 | B9: 271-005-02 | C9: 固态 | D9: 0 | E9: =23.78 -> 23.78 | F9: =11.78+12 -> 23.78 | J9: 0 | P9: 0 | R9: 废商标 | S9: 0 | Y9: 0 | Z9: 除商标 | AA9: 2#库
A10: 实验室废液 | B10: 900-002-03 | C10: 液态 | D10: 102.144 | G10: =15.331+5.715+10.95+27.465+11.1+16.633 -> 87.194 | J10: 14.95 | O10: 14.95 | P10: 14.95 | R10: 废残液 | S10: 0 | Y10: 0 | Z10: 抽残液 | AA10: 2#库
A11: 高危化学品 | B11: 900-002-03 | C11: 半固态 | D11: 0 | J11: 0 | P11: 0 | R11: 废渣 | S11: 0 | Y11: 0 | Z11: 清洗过程 | AA11: 2#库
A12: 一般废药品 | B12: 900-002-03 | C12: 固态 | D12: 0.004 | E12: =0.34+7+6.5+6.94 -> 20.78 | F12: =0.004+0.34+7+6.5 -> 13.844 | J12: 6.94 | L12: 6.94 | P12: 6.94 | R12: 漆渣 | S12: 0 | Y12: 0 | Z12: 清洗过程
A13: 磷化铝、杀虫剂 | B13: 900-003-04 | C13: 固态 | D13: 0.14 | F13: =0.14 -> 0.14 | J13: 0 | P13: 0 | R13: 污水厂污泥 | S13: 0 | Y13: 0 | Z13: 水处理后产生的污泥 | AA13: 2#库
A14: 废药物、药品 杀虫剂、磷化铝等 | B14: 900-003-04 | C14: 半固态 | D14: 0 | J14: 0 | P14: 0 | R14: 废清洗剂 | S14: 0 | Y14: 0 | Z14: 清洗剂清洗过程
A15: 废盐 | B15: 263-008-04 | C15: 固态 | D15: 0 | J15: 0 | P15: 0
A16: 蒸馏残液 | B16: 263-008-04 | C16: 半固态 | D16: 0 | J16: 0 | P16: 0
A17: 废渣 | B17: 263-009-04 | C17: 固态 | D17: 0 | J17: 0 | P17: 0
A18: 污泥 | B18: 263-011-04 | C18: 固态 | D18: 0 | J18: 0 | P18: 0
A19: 废弃木材 | B19: 201-003-05 | C19: 固态 | D19: 0 | J19: 0 | P19: 0
A20: 废有机溶剂 | B20: 900-401-06 | C20: 液态 | D20: 0 | J20: 0 | P20: 0
A21: 废有机溶剂及废物 | B21: 900-402-06 | C21: 液态 | D21: 77.985 | E21: =2.354+0.016+2.448+0.06+2.3865 -> 7.2645 | F21: =4.829+6 -> 10.829 | G21: =16.736+3.5+0.016 -> 20.252 | J21: 54.1685 | L21: 54.1685 | P21: 54.1685
A22: 清洗剂、渗透剂包装物 | B22: 900-402-06 | C22: 固态 | D22: 0 | J22: 0 | P22: 0
A23: 废有机溶剂 | B23: 900-404-06 | C23: 液态 | D23: 9.652 | E23: =2.61+0.425+0.5 -> 3.535 | G23: =0.425 -> 0.425 | J23: 12.762 | L23: 12.762 | P23: 12.762
A24: 定期更换的活性炭 | B24: 900-405-06 | C24: 固态 | D24: 0 | J24: 0 | P24: 0
A25: 丙烯酸甲酯聚合物 | B25: 900-407-06 | C25: 固态 | D25: 0 | J25: 0 | P25: 0
A26: 废有机溶剂 | B26: 900-407-06 | C26: 液态 | D26: 183.7171 | E26: =25.25+22.248 -> 47.498 | G26: =17.0464+5 -> 22.0464 | J26: 209.1687 | L26: =209.1687-20 -> 189.1687 | O26: 20 | P26: 209.1687
A27: 污泥 | B27: 900-409-06 | C27: 半固态 | D27: 0 | J27: 0 | P27: 0
A28: 油污水 | B28: 251-001-08 | C28: 液态 | D28: 703.19 | J28: 703.19 | N28: 703.19 | P28: 703.19
A29: 清罐油渣 | B29: 251-002-08 | C29: 固态 | D29: 0 | J29: 0 | P29: 0
A30: 浮渣、污泥 | B30: 251-003-08 | C30: 固态 | D30: 0 | J30: 0 | P30: 0
A31: 废滤芯 | B31: 251-012-08 | C31: 固态 | D31: 0 | J31: 0 | P31: 0
A32: 废溶剂油 | B32: 291-001-08 | C32: 液态 | D32: 0 | J32: 0 | P32: 0
A33: 废溶剂油 | B33: 291-001-08 | C33: 半固态 | D33: 13.54 | E33: =19.3 -> 19.3 | F33: =5.9+7.64+4 -> 17.54 | J33: 15.3 | K33: 15.3 | P33: 15.3
A34: 油泥、油脚 | B34: 071-001-08 | C34: 液态 | D34: 0 | J34: 0 | P34: 0
A35: 含油泥浆 | B35: 071-002-08 | C35: 液态 | D35: 1125.3 | J35: 1125.3 | N35: 1125.3 | P35: 1125.3
A36: 含油岩屑 | B36: 071-002-08 | C36: 半固态 | D36: 225.374 | F36: =11.11+18.9+17.76+8.89+13.36+6.68 -> 76.7 | J36: 148.674 | M36: 148.674 | P36: 148.674
A37: 废油泥 | B37: 900-200-08 | C37: 半固态 | D37: 0.81 | F37: =0.81 -> 0.81 | J37: 0 | P37: 0
A38: 研磨泥 | B38: 900-200-08 | C38: 固态 | D38: 7.35 | E38: =20.54+15.67 -> 36.21 | F38: =7.35+20.54+15.67 -> 43.56 | J38: 0 | P38: 0
A39: HW08废油 | B39: 900-200-08 | C39: 液态 | D39: 107.46 | F39: =9+4 -> 13 | J39: 94.46 | N39: 94.46 | P39: 94.46
A40: 废煤油 | B40: 900-201-08 | C40: 液态 | D40: 1.62 | J40: 1.62 | L40: =1 -> 1 | N40: 0.62 | P40: 1.62
A41: 油泥 | B41: 900-201-08 | C41: 半固态 | D41: 0 | J41: 0 | P41: 0
A42: 废润滑油废浮渣 | B42: 900-209-08 | C42: 液态 | D42: 0 | E42: 0.82 | J42: 0.82 | L42: 0.82 | P42: 0.82
A43: 废润滑脂 | B43: 900-209-08 | C43: 半固态 | D43: 0 | E43: =0.042 -> 0.042 | F43: =0.042 -> 0.042 | J43: 0
A44: 水处理浮渣及污泥 | B44: 900-210-08 | C44: 半固态 | D44: 267.14 | E44: =8.006+0.6+4.944 -> 13.55 | F44: =7+8.006 -> 15.006 | J44: 265.684 | K44: 0.6 | L44: 4.944 | N44: 260.14 | P44: =K44+L44+M44+N44+O44 -> 265.684
A45: 废机油、含油废水 | B45: 900-210-08 | C45: 液态 | D45: 77.92 | G45: =3.72 -> 3.72 | J45: 74.2 | L45: 59.9 | N45: 14.3 | P45: 74.2
A46: 废油泥 | B46: 900-210-08 | C46: 固态 | D46: 93.1025 | E46: =9.8075+6.3825+6.258 -> 22.448 | F46: =13.2025+9.8075+6.3825 -> 29.3925 | J46: 86.158 | K46: 45.3 | L46: 40.858 | P46: 86.158
A47: 废水处理过程产废油、油泥、浮渣 | B47: 900-210-08 | C47: 液态 | D47: 0 | J47: 0 | P47: 0
A48: 废白土 | B48: 900-213-08 | C48: 固态 | D48: 0 | J48: 0 | P48: 0
A49: 废机油 | B49: 900-213-08 | C49: 液态 | D49: 0 | J49: 0 | P49: 0
A50: 废矿物油 | B50: 900-214-08 | C50: 液态 | D50: 95.43704 | E50: =0.02+0.3+0.5+0.069 -> 0.889 | G50: =3.08+7.4951 -> 10.5751 | J50: 85.75094 | N50: 85.75094 | P50: 85.75094
A51: 废锂基脂 | B51: 900-214-08 | C51: 半固态 | D51: 0 | J51: 0 | P51: 0
A52: 废矿物油 | B52: 900-217-08 | C52: 液态 | D52: 58.9485 | E52: =0.0915 -> 0.0915 | G52: =10.14685+3.3 -> 13.44685 | J52: 45.59315 | N52: 45.59315 | P52: 45.59315
A53: 废甘油 | B53: 900-217-08 | C53: 半固态 | D53: 0 | J53: 0 | P53: 0
A54: 废液压油 | B54: 900-218-08 | C54: 液态 | D54: 51.325 | E54: =0.2 -> 0.2 | G54: =2.74 -> 2.74 | J54: 48.785 | N54: 48.785 | P54: 48.785
A55: 废冷冻机油 | B55: 900-219-08 | C55: 液态 | D55: 5.56 | G55: =0.2 -> 0.2 | J55: 5.36 | N55: 5.36 | P55: 5.36
A56: 废矿物油与含矿物油废物 | B56: 900-220-08 | C56: 液态 | D56: 8.609 | G56: =5.8 -> 5.8 | J56: 2.809 | N56: 2.809 | P56: 2.809
A57: 清罐污泥 | B57: 900-220-08 | C57: 固态 | D57: 0 | J57: 0 | P57: 0
A58: 废油泥 | B58: 900-221-08 | C58: 半固态 | D58: 0 | J58: 0 | P58: 0
A59: 废矿物油 | B59: 900-249-08 | C59: 液态 | D59: 296.18828 | E59: =0.35+0.45+2.67+1.1 -> 4.57 | F59: =10 -> 10 | G59: =6.53+2.44+8.58+8.2+0.403+0.41+23.9 -> 50.463 | J59: 240.29528 | L59: =135.27-40 -> 95.27 | N59: 105.02528 | O59: 40 | P59: 240.29528
A60: 废矿物油、废油桶 | B60: 900-249-08 | C60: 固态 | D60: 37.06 | E60: =0.048+2.55+0.05+0.051 -> 2.699 | F60: =6.9+0.05 -> 6.95 | H60: =1.53 -> 1.53 | J60: 31.279 | K60: 0.051 | L60: =31.228-20 -> 11.228 | O60: 20 | P60: 31.279
A61: 废矿物油、油泥 | B61: 900-249-08 | C61: 半固态 | D61: 0 | J61: 0 | P61: 0
A62: 废水、乳化液 | B62: 900-007-09 | C62: 液态 | D62: 195.4993 | E62: =0.876+1+2.6+2.8+6.029+0.05+0.786 -> 14.141 | F62: =3.991+2.971+6.263+8.793+0.05 -> 22.068 | G62: =7.5+10.786 -> 18.286 | J62: 169.2863 | L62: =169.2863-20 -> 149.2863 | O62: 20 | P62: 169.2863
A63: 沉淀渣 | B63: 900-007-09 | C63: 半固态 | D63: 0 | E63: 12.72 | J63: 12.72 | L63: 12.72 | P63: 12.72
A64: 废乳化液 | B64: 900-005-09 | C64: 液态 | D64: 0 | J64: 0 | P64: 0
A65: 废乳化液 | B65: 900-006-09 | C65: 液态 | D65: 319.237 | E65: =4.72+17.2+15.8+2.7+0.08 -> 40.5 | F65: =10+3.46+14.28+2.22+4.5+3.1+2.7 -> 40.26 | G65: =5+1+24.52+17.14+9.2+2.96+17+32.7+16.45+1.4 -> 127.37 | J65: 192.107 | L65: =192.107-40 -> 152.107 | O65: 40 | P65: 192.107
A66: 砂轮沫 | B66: 900-006-09 | C66: 固态 | D66: 0 | E66: =4.82 -> 4.82 | F66: =4.82 -> 4.82 | J66: 0 | P66: 0
A67: 废焦油渣 | B67: 252-005-11 | C67: 固态 | D67: 31.52 | J67: 31.52 | K67: 31.52 | P67: 31.52
A68: 废水汽提塔排重质烃 | B68: 252-009-11 | C68: 液态 | D68: 0 | E68: =20.44 -> 20.44 | J68: =D68+E68-F68-G68-H68-I68 -> 20.44 | L68: 20.44 | P68: 20.44
A69: 煤焦油、釜残 | B69: 900-013-11 | C69: 固态 | D69: 0 | E69: =10.571+3.527 -> 14.098 | F69: =8.281+3.527 -> 11.808 | J69: 2.29 | L69: 2.29 | P69: 2.29
A70: 煤焦油 | B70: 900-013-11 | C70: 液态 | D70: 2.89 | J70: 2.89 | K70: 2.89 | P70: 2.89
A71: 釜残 | B71: 900-013-11 | C71: 半固态 | D71: 294.16 | E71: =5.032 -> 5.032 | F71: =3+3 -> 6 | J71: 293.192 | K71: 293.192 | P71: 293.192
A72: 煤焦油 | B72: 451-003-11 | C72: 半固态 | D72: 0 | J72: 0 | P72: 0
A73: 煤焦油 | B73: 451-003-11 | C73: 液态 | D73: 52.02 | J73: 52.02 | L73: 52.02 | P73: 52.02
A74: 焦油渣 | B74: 451-003-11 | C74: 固态 | D74: 0 | J74: 0 | P74: 0
A75: 焦油渣 | B75: 451-001-11 | C75: 半固态 | D75: 0 | J75: 0 | P75: 0
A76: 漆渣 | B76: 900-250-12 | C76: 固态 | D76: 25.38 | E76: =39.58 -> 39.58 | F76: =5.38+10+10+22.58+17 -> 64.96 | J76: 0 | P76: 0
A77: 漆渣 | B77: 900-250-12 | C77: 半固态 | D77: 0 | E77: =0.738+0.346 -> 1.084 | F77: =0.738+0.346 -> 1.084 | J77: 0 | P77: 0
A78: 油漆渣 | B78: 900-251-12 | C78: 固态 | D78: 0 | J78: 0 | P78: 0
A79: 废彩涂液 | B79: 900-252-12 | C79: 液态 | D79: 57.9 | J79: 57.9 | K79: 57.9 | P79: 57.9
A80: 废漆渣 | B80: 900-252-12 | C80: 固态 | D80: 141.366 | E80: =29.6345+21.2785+12.52+8.198+24.417+3.5+16.34+8.24+24.198+13.65+17.2+13.9155+0.5+23.64+45.756 -> 262.9875 | F80: =14.1055+41.3755+28+10.65+37.593+26.6985+46.1715+19.0755+8.34 -> 232.0095 | J80: 172.344 | K80: 172.344 | P80: 172.344
A81: 漆渣 | B81: 900-252-12 | C81: 半固态 | D81: 0 | J81: 0 | P81: 0
A82: 废油墨 | B82: 900-253-12 | C82: 液态 | D82: 0 | J82: 0 | P82: 0
A83: 废浆 | B83: 900-253-12 | C83: 固态 | D83: 0 | J83: 0 | P83: 0
A84: 原材料废包装袋 | B84: 900-255-12 | C84: 固态 | D84: 0 | J84: 0 | P84: 0
A85: 废油漆 | B85: 900-256-12 | C85: 液态 | D85: 0 | J85: 0 | P85: 0
A86: 废油漆 | B86: 900-256-12 | C86: 半固态 | D86: 0 | J86: 0 | P86: 0
A87: 油墨渣子、油漆 | B87: 900-299-12 | C87: 半固态 | D87: 0 | J87: 0 | P87: 0
A88: 硒鼓墨盒 | B88: 900-299-12 | C88: 固态 | D88: 0.19 | E88: =0.2+0.015 -> 0.215 | F88: =0.2+0.015 -> 0.215 | J88: 0.19 | K88: 0.19 | P88: 0.19
A89: 油漆渣 | B89: 900-299-12 | C89: 液态 | D89: 4 | J89: 4 | K89: 2.4 | L89: 1.6 | P89: 4
A90: 废油墨 | B90: 264-011-12 | C90: 液态 | D90: 0 | J90: 0 | P90: 0
A91: 油墨渣 | B91: 264-011-12 | C91: 固态 | D91: 0 | J91: 0 | P91: 0
A92: 污泥 | B92: 264-012-12 | C92: 固态 | D92: 0 | J92: 0 | P92: 0
A93: 废漆渣稀释剂混合物 | B93: 264-013-12 | C93: 液态 | D93: 0 | J93: 0 | P93: 0
A94: 发泡废料，废胶水 | B94: 900-014-13 | C94: 半固态 | D94: 0 | E94: =0.05 -> 0.05 | J94: 0.05 | K94: 0.05 | P94: 0.05
A95: 废胶水 | B95: 900-014-13 | C95: 液态 | D95: 0 | J95: 0 | P95: 0
A96: 发泡废料，废胶水 | B96: 900-014-13 | C96: 固态 | D96: 5.58 | E96: =3.38+2.46+2.62+6.99+3.65+8.45 -> 27.55 | F96: =3.08+2.5+3.38+8.45+13.26 -> 30.67 | J96: 2.46 | K96: 2.46 | P96: 2.46
A97: 废树脂 | B97: 900-015-13 | C97: 固态 | D97: 0 | J97: 0 | P97: 0
A98: 废树脂 | B98: 900-015-13 | C98: 半固态 | D98: 0 | J98: 0 | P98: 0
A99: 废水 | B99: 900-016-13 | C99: 液态 | D99: 2 | J99: 2 | K99: 2 | P99: 2
A100: 有机树脂废物 | B100: 900-016-13 | C100: 半固态 | D100: 0 | E100: =5.76 -> 5.76 | J100: 5.76 | K100: 5.76 | P100: 5.76
A101: 树脂胶 | B101: 265-101-13 | C101: 固态 | D101: 0 | E101: =0.28173 -> 0.28173 | F101: =0.28173 -> 0.28173 | J101: 0 | P101: 0
A102: 不合格有机树脂 | B102: 265-101-13 | C102: 半固态 | D102: 0 | J102: 0 | P102: 0
A103: 废母液 | B103: 265-102-13 | C103: 液态 | D103: 15 | F103: =7+8 -> 15 | J103: 0 | P103: 0
A104: 含盐废水 | B104: 265-103-13 | C104: 液态 | D104: 0 | J104: 0 | P104: 0
A105: 釜残与滤渣 | B105: 265-103-13 | C105: 半固态 | D105: 0 | J105: 0 | P105: 0
A106: 产品水解物、氯化镁盐 | B106: 265-103-13 | C106: 固态 | D106: 0 | E106: =0.5156 -> 0.5156 | F106: =0.5156 -> 0.5156 | J106: 0 | P106: 0
A107: 污泥 | B107: 265-104-13 | C107: 半固态 | D107: 0 | J107: 0 | P107: 0
A108: 污水处理站污泥 | B108: 265-104-13 | C108: 固态 | D108: 0 | J108: 0 | P108: =K108+L108+M108+N108+O108 -> 0
A109: 印刷版 | B109: 231-002-16 | C109: 固态 | D109: 0 | J109: 0 | P109: 0
A110: 废定影液 | B110: 266-009-16 | C110: 液态 | D110: 0 | J110: 0 | P110: 0
A111: 废胶片 | B111: 266-009-16 | C111: 固态 | D111: 0 | J111: 0 | P111: 0
A112: 废显影液 | B112: 900-019-16 | C112: 液态 | D112: 0 | J112: 0 | P112: 0
A113: 废显影液 | B113: 398-001-16 | C113: 液态 | D113: 0 | J113: 0 | P113: 0
A114: 助镀再生废渣 | B114: 336-051-17 | C114: 固态 | D114: 0 | J114: 0 | P114: 0
A115: 含铬污泥 | B115: 336-060-17 | C115: 固态 | D115: 0 | J115: 0 | P115: 0
A116: 镀铜溶液 | B116: 336-062-17 | C116: 液态 | D116: 0 | J116: 0 | P116: 0
A117: 含铜污泥 | B117: 336-062-17 | C117: 固态 | D117: 0 | J117: 0 | P117: 0
A118: 电镀污泥 | B118: 336-052-17 | C118: 固态 | D118: 31.78 | E118: =30.06+30.84+29.6 -> 90.5 | F118: =21+25.78+15.06+10+34.84+15.6 -> 122.28 | J118: 0 | P118: 0
A119: 污泥 | B119: 336-053-17 | C119: 固态 | D119: 0 | J119: 0 | P119: 0
A120: 镀镍废液 | B120: 336-055-17 | C120: 液态 | D120: 11 | F120: =11 -> 11 | J120: 0 | P120: 0
A121: 镀铁电解液 | B121: 336-063-17 | C121: 液态 | D121: 32.07 | F121: =5 -> 5 | G121: =22+5.07 -> 27.07 | J121: 0 | P121: 0
A122: 电镀污泥 | B122: 336-063-17 | C122: 半固态 | D122: 0 | J122: 0 | P122: 0
A123: 电镀污泥 | B123: 336-063-17 | C123: 固态 | D123: 0 | J123: 0 | P123: 0
A124: 磷化污泥 | B124: 336-064-17 | C124: 固态 | D124: 9.86 | E124: =4.35+22.1+0.05+4.34 -> 30.84 | F124: =9.86+4.35+0.05 -> 14.26 | J124: 26.44 | O124: 26.44 | P124: 26.44
A125: 金属表面处理污泥 | B125: 336-064-17 | C125: 半固态 | D125: 0 | J125: 0 | P125: 0
A126: 金属表面处理污泥 | B126: 336-064-17 | C126: 液态 | D126: 9.5 | E126: =0.7+20.34 -> 21.04 | F126: =0.7 -> 0.7 | G126: =9.5 -> 9.5 | J126: 20.34 | O126: 20.34 | P126: 20.34
A127: 污泥 | B127: 336-069-17 | C127: 半固态 | D127: 0 | J127: 0 | P127: 0
A128: 污泥 | B128: 336-069-17 | C128: 液态 | D128: 25.58 | J128: 25.58 | L128: 25.58 | P128: 25.58
A129: 污泥 | B129: 336-069-17 | C129: 固态 | D129: 0 | E129: =15.26 -> 15.26 | F129: =15.26 -> 15.26 | J129: 0 | P129: 0
A130: 活性炭 | B130: 772-005-18 | C130: 固态 | D130: 0 | J130: 0 | P130: 0
A131: 废UV灯管 | B131: 900-023-29 | C131: 固态 | D131: 0 | J131: 0 | P131: 0
A132: 废碱液 | B132: 251-015-35 | C132: 液态 | D132: 0 | J132: =D132+E132-F132-G132-H132-I132 -> 0 | P132: 0
A133: 废碱泥 | B133: 251-015-35 | C133: 半固态 | D133: 16.84 | J133: 16.84 | O133: 16.84 | P133: 16.84
A134: 片碱袋 | B134: 900-399-35 | C134: 固态 | D134: 0 | J134: 0 | P134: 0
A135: 清洁剂 | B135: 900-399-35 | C135: 液态 | D135: 0 | J135: 0 | P135: 0
A136: 废硫氢化钠残渣 | B136: 900-399-35 | C136: 半固态 | D136: 0 | J136: 0 | P136: 0
A137: 废碱液 | B137: 900-352-35 | C137: 液态 | D137: 0 | E137: =4.65+0.46 -> 5.11 | F137: =4.65 -> 4.65 | G137: =0.46 -> 0.46 | J137: 0 | P137: 0
A138: 废碱液 | B138: 900-354-35 | C138: 液态 | D138: 0 | J138: 0 | P138: 0
A139: 废抗燃油 | B139: 900-033-37 | C139: 液态 | D139: 0 | J139: 0 | P139: 0
A140: 含酚废水 | B140: 261-070-39 | C140: 液态 | D140: 195.84 | E140: =36.3 -> 36.3 | J140: 232.14 | N140: 232.14 | P140: 232.14
A141: 废活性炭 | B141: 261-071-39 | C141: 固态 | D141: 0 | J141: 0 | P141: 0
A142: 污泥 | B142: 261-084-45 | C142: 半固态 | D142: 37.8 | J142: 37.8 | L142: 37.8 | P142: 37.8
A143: 含油废物 | B143: 900-041-49 | C143: 固态 | D143: 204.712 | E143: =4.3+17.663+7.1193+4.62514+8.9725+10.941+16.175+13.57+3.3545+17.24+9.74+5.36+13.524-8.45+10.62+16.041+15.742+11.1395+4.2455 -> 181.92244 | F143: =13.227+7.409+1.551+10.01514+1.7293+34.1655+15.2145+32.028+24.695+14.02 -> 154.05444 | H143: =3.12+4.02 -> 7.14 | J143: 225.44 | K143: 222.86 | L143: 2.58 | P143: 225.44
A144: 含有或沾染危险废物的废弃物 | B144: 900-041-49 | C144: 半固态 | D144: 0 | J144: 0 | P144: 0
A145: 电捕焦油 | B145: 900-041-49 | C145: 液态 | D145: 0 | J145: 0 | P145: 0
A146: 废酸碱袋 | B146: 900-042-49 | C146: 固态 | D146: 0.143 | E146: =0.458+0.275+0.307 -> 1.04 | F146: =0.143+0.458+0.275 -> 0.876 | J146: 0.307 | K146: 0.307 | P146: 0.307
A147: 污泥 | B147: 772-006-49 | C147: 固态 | D147: 0 | J147: 0 | P147: 0
A148: 污泥 | B148: 772-006-49 | C148: 半固态 | D148: 18.314 | E148: =3.75 -> 3.75 | F148: =18.314+3.75 -> 22.064 | J148: 0 | P148: 0
A149: 废活性炭 | B149: 900-039-49 | C149: 固态 | D149: 0 | E149: =0.9+3.24+1.995+0.5+0.2+0.314 -> 7.149 | F149: =0.9+3.24+0.135+1.86+0.4+0.3 -> 6.835 | J149: 0.314 | L149: 0.314 | P149: 0.314
A150: 废水污泥 | B150: 900-046-49 | C150: 固态 | D150: 0 | E150: =5.4 -> 5.4 | F150: =5.4 -> 5.4 | J150: 0 | P150: 0
A151: 污泥 | B151: 900-046-49 | C151: 半固态 | D151: 0 | J151: 0 | P151: 0
A152: 过期化学药品 | B152: 900-047-49 | C152: 固态 | D152: 0 | E152: =0.509+0.167 -> 0.676 | F152: =0.509 -> 0.509 | J152: 0.167 | L152: 0.167 | P152: 0.167
A153: 乙腈、异丙酮、废液 | B153: 900-047-49 | C153: 液态 | D153: 57.47158 | E153: =3.6701+3.881+3.155+2.04+2.504+4.098+1.2+6.896 -> 27.4441 | F153: =0.5515+0.6356+2.04 -> 3.2271 | G153: =12.6101+3.14+17.53748+6.888+0.512 -> 40.68758 | J153: 41.001 | L153: 41.001 | P153: 41.001
A154: 过期药品 | B154: 900-999-49 | C154: 固态 | D154: 0.92 | E154: =0.00008+0.28+1.9 -> 2.18008 | F154: =0.92+0.00008+0.28 -> 1.20008 | J154: 1.9 | L154: 1.9 | P154: 1.9
A155: 过期面膜原料、残液 | B155: 900-999-49 | C155: 液态 | D155: 29.48 | E155: =0.045 -> 0.045 | J155: 29.525 | L155: 29.525 | P155: 29.525
A156: 废催化剂 | B156: 261-152-50 | C156: 固态 | D156: 0 | J156: 0 | P156: 0
A157: 小计： | D157: 5382.5273 | E157: =SUM(E4:E156) -> 1082.10845 | F157: 1063.49895 | G157: 440.23593 | H157: 8.67 | I157: 0 | J157: 4952.23087 | K157: =SUM(K4:K156) -> 855.124 | L157: 1006.3895 | M157: 148.674 | N157: 2723.47337 | O157: 218.57 | P157: 4952.23087
A158: 合计： | F158: =F157+G157+H157 -> 1512.40488
